[Event "Early-Titled-Tuesday-Blitz-October-24-2023"]
[Site "Chess.com"]
[Date "2023.10.24"]
[Round "9"]
[White "aranibos"]
[Black "giomar27"]
[Result "1/2-1/2"]
[WhiteElo "2283"]
[BlackElo "2361"]
[TimeControl "180+1"]
[EndTime "9:42:11 PDT"]
[Termination "Game drawn by repetition"]

1. d4 {[%clk 0:03:00.9]} 1... Nf6 {[%clk 0:02:59.8]} 2. Nf3 {[%clk 0:03:00.3]}
2... c5 {[%clk 0:02:58.9]} 3. d5 {[%clk 0:02:59]} 3... b5 {[%clk 0:02:58.7]} 4.
a4 {[%clk 0:02:56.5]} 4... b4 {[%clk 0:02:55.6]} 5. c4 {[%clk 0:02:55.9]} 5...
d6 {[%clk 0:02:53.3]} 6. g3 {[%clk 0:02:53.5]} 6... e5 {[%clk 0:02:53.4]} 7. Bg2
{[%clk 0:02:54.2]} 7... Be7 {[%clk 0:02:52.6]} 8. O-O {[%clk 0:02:54.1]} 8...
O-O {[%clk 0:02:52.7]} 9. b3 {[%clk 0:02:54.8]} 9... a5 {[%clk 0:02:50.5]} 10.
Ra2 {[%clk 0:02:54.3]} 10... Nbd7 {[%clk 0:02:49.8]} 11. Nfd2 {[%clk 0:02:52.7]}
11... Ne8 {[%clk 0:02:49.6]} 12. e4 {[%clk 0:02:51.2]} 12... g6 {[%clk
0:02:49.9]} 13. Re1 {[%clk 0:02:46.1]} 13... Ng7 {[%clk 0:02:49]} 14. Nf1 {[%clk
0:02:43.6]} 14... f5 {[%clk 0:02:46.2]} 15. exf5 {[%clk 0:02:42.5]} 15... Nxf5
{[%clk 0:02:45.3]} 16. Bh3 {[%clk 0:02:42.3]} 16... Nf6 {[%clk 0:02:44.7]} 17.
Bxf5 {[%clk 0:02:41.5]} 17... Bxf5 {[%clk 0:02:42.1]} 18. Bh6 {[%clk 0:02:39.2]}
18... Rf7 {[%clk 0:02:41.3]} 19. f3 {[%clk 0:02:33.7]} 19... Bf8 {[%clk
0:02:14.1]} 20. Bxf8 {[%clk 0:02:29.7]} 20... Qxf8 {[%clk 0:02:13.8]} 21. Rf2
{[%clk 0:02:29]} 21... Re8 {[%clk 0:02:12.4]} 22. Nbd2 {[%clk 0:02:27.2]} 22...
g5 {[%clk 0:01:56.8]} 23. Ne3 {[%clk 0:02:25.1]} 23... Bg6 {[%clk 0:01:55.9]}
24. Ref1 {[%clk 0:02:24]} 24... Bd3 {[%clk 0:01:40.5]} 25. Re1 {[%clk
0:02:23.3]} 25... Bg6 {[%clk 0:01:39.4]} 26. Qe2 {[%clk 0:02:12.1]} 26... Qg7
{[%clk 0:01:36.2]} 27. Ref1 {[%clk 0:02:11.5]} 27... Ref8 {[%clk 0:01:36.1]} 28.
Ng4 {[%clk 0:02:05.2]} 28... Nxg4 {[%clk 0:01:03.8]} 29. fxg4 {[%clk 0:02:04.1]}
29... Rxf2 {[%clk 0:01:03.9]} 30. Rxf2 {[%clk 0:02:04.8]} 30... Rxf2 {[%clk
0:01:04.5]} 31. Qxf2 {[%clk 0:02:05.1]} 31... Qf7 {[%clk 0:01:04.6]} 32. Qxf7+
{[%clk 0:02:00.2]} 32... Kxf7 {[%clk 0:01:02.8]} 33. Kf2 {[%clk 0:02:00.7]}
33... Kf6 {[%clk 0:00:53.1]} 34. Ke3 {[%clk 0:01:59.1]} 34... h6 {[%clk
0:00:45.3]} 35. Ne4+ {[%clk 0:01:55.4]} 35... Ke7 {[%clk 0:00:25.4]} 36. h4
{[%clk 0:01:54.3]} 36... Bxe4 {[%clk 0:00:10]} 37. Kxe4 {[%clk 0:01:53.1]} 37...
h5 {[%clk 0:00:06.9]} 38. hxg5 {[%clk 0:01:43.4]} 38... hxg4 {[%clk 0:00:04.7]}
39. Kf5 {[%clk 0:01:42.7]} 39... Kf7 {[%clk 0:00:04.2]} 40. g6+ {[%clk
0:01:30.7]} 40... Kg7 {[%clk 0:00:04.2]} 41. Kg5 {[%clk 0:01:23]} 41... e4
{[%clk 0:00:02.8]} 42. Kf4 {[%clk 0:01:22.6]} 42... Kxg6 {[%clk 0:00:03.2]} 43.
Kxe4 {[%clk 0:01:20.1]} 43... Kg5 {[%clk 0:00:03.6]} 44. Ke3 {[%clk 0:01:00.8]}
44... Kf5 {[%clk 0:00:04.5]} 45. Kd3 {[%clk 0:01:00.9]} 45... Ke5 {[%clk
0:00:04.7]} 46. Ke3 {[%clk 0:01:01.4]} 46... Kf5 {[%clk 0:00:05.1]} 47. Kd3
{[%clk 0:01:01.7]} 47... Kg5 {[%clk 0:00:05.6]} 48. Ke3 {[%clk 0:01:01.7]} 48...
Kf5 {[%clk 0:00:05.1]} 1/2-1/2

[Event "Early-Titled-Tuesday-Blitz-October-24-2023"]
[Site "Chess.com"]
[Date "2023.10.24"]
[Round "9"]
[White "NowInChess"]
[Black "Nasrin_Babayeva"]
[Result "0-1"]
[WhiteElo "2200"]
[BlackElo "1785"]
[TimeControl "180+1"]
[EndTime "9:42:14 PDT"]
[Termination "Nasrin_Babayeva won on time"]

1. e4 {[%clk 0:03:00.9]} 1... Nc6 {[%clk 0:02:59.6]} 2. Nf3 {[%clk 0:02:56.3]}
2... d6 {[%clk 0:02:58.8]} 3. d4 {[%clk 0:02:56.2]} 3... Nf6 {[%clk 0:02:58]} 4.
Nc3 {[%clk 0:02:55.5]} 4... Bg4 {[%clk 0:02:58.6]} 5. Be2 {[%clk 0:02:54.8]}
5... e6 {[%clk 0:02:58]} 6. h3 {[%clk 0:02:55.1]} 6... Bh5 {[%clk 0:02:52]} 7.
Be3 {[%clk 0:02:54.5]} 7... Be7 {[%clk 0:02:49.4]} 8. O-O {[%clk 0:02:52.4]}
8... O-O {[%clk 0:02:48.2]} 9. g4 {[%clk 0:02:45.4]} 9... Bg6 {[%clk 0:02:40.2]}
10. Nd2 {[%clk 0:02:44.9]} 10... e5 {[%clk 0:02:35.3]} 11. d5 {[%clk 0:02:24.5]}
11... Nd4 {[%clk 0:02:23.6]} 12. f4 {[%clk 0:02:23.3]} 12... h6 {[%clk
0:02:15.2]} 13. f5 {[%clk 0:02:15.3]} 13... Bh7 {[%clk 0:02:14.6]} 14. Nf3
{[%clk 0:02:11.6]} 14... c5 {[%clk 0:02:07.4]} 15. dxc6 {[%clk 0:02:00.5]} 15...
Nxf3+ {[%clk 0:01:57.2]} 16. Bxf3 {[%clk 0:01:59.1]} 16... bxc6 {[%clk
0:01:58.1]} 17. Qd3 {[%clk 0:01:41.5]} 17... Qa5 {[%clk 0:01:49.1]} 18. Rfd1
{[%clk 0:01:13.2]} 18... Rfd8 {[%clk 0:01:46.5]} 19. h4 {[%clk 0:00:58.3]} 19...
d5 {[%clk 0:01:37.9]} 20. exd5 {[%clk 0:00:48.4]} 20... cxd5 {[%clk 0:01:30.7]}
21. Nxd5 {[%clk 0:00:45.8]} 21... Nxd5 {[%clk 0:01:25.8]} 22. Bxd5 {[%clk
0:00:46.7]} 22... Bxh4 {[%clk 0:01:25.2]} 23. Qb3 {[%clk 0:00:32.9]} 23... Rab8
{[%clk 0:01:11.3]} 24. Bxf7+ {[%clk 0:00:32.7]} 24... Kh8 {[%clk 0:01:11]} 25.
Rxd8+ {[%clk 0:00:29.1]} 25... Qxd8 {[%clk 0:01:09.4]} 26. Qc3 {[%clk
0:00:12.6]} 26... Rb7 {[%clk 0:01:06.6]} 27. Be6 {[%clk 0:00:07.9]} 27... Bf6
{[%clk 0:01:01.1]} 28. Qd2 {[%clk 0:00:07.2]} 28... Qxd2 {[%clk 0:00:58.2]} 29.
Bxd2 {[%clk 0:00:08.1]} 29... Rxb2 {[%clk 0:00:58.3]} 30. Rc1 {[%clk 0:00:06]}
30... Bg8 {[%clk 0:00:51.5]} 31. Bxg8 {[%clk 0:00:04.9]} 31... Kxg8 {[%clk
0:00:52.4]} 32. a4 {[%clk 0:00:04.2]} 32... e4 {[%clk 0:00:50.6]} 33. a5 {[%clk
0:00:03.3]} 33... Bd4+ {[%clk 0:00:49.9]} 34. Kg2 {[%clk 0:00:03.2]} 34... e3
{[%clk 0:00:48.7]} 35. Be1 {[%clk 0:00:02.9]} 35... Ra2 {[%clk 0:00:43.4]} 36.
Kf3 {[%clk 0:00:02.6]} 36... Bc5 {[%clk 0:00:40.3]} 37. c4 {[%clk 0:00:02.2]}
37... Ra3 {[%clk 0:00:39.4]} 38. Ke2 {[%clk 0:00:01.8]} 38... Ra2+ {[%clk
0:00:39]} 0-1

[Event "Early-Titled-Tuesday-Blitz-October-24-2023"]
[Site "Chess.com"]
[Date "2023.10.24"]
[Round "9"]
[White "Barmen_EV"]
[Black "DonJuanEGenaro"]
[Result "1-0"]
[WhiteElo "2504"]
[BlackElo "1842"]
[TimeControl "180+1"]
[EndTime "9:42:17 PDT"]
[Termination "Barmen_EV won on time"]

1. e4 {[%clk 0:02:55.6]} 1... c5 {[%clk 0:02:58.4]} 2. c3 {[%clk 0:02:55.6]}
2... e5 {[%clk 0:02:56.1]} 3. Nf3 {[%clk 0:02:55.5]} 3... Nc6 {[%clk 0:02:55.7]}
4. Bc4 {[%clk 0:02:56.2]} 4... Nf6 {[%clk 0:02:55.2]} 5. Ng5 {[%clk 0:02:53.8]}
5... d5 {[%clk 0:02:54.8]} 6. exd5 {[%clk 0:02:54.1]} 6... Nxd5 {[%clk
0:02:54.7]} 7. Nf3 {[%clk 0:02:49]} 7... Be7 {[%clk 0:02:38.9]} 8. O-O {[%clk
0:02:48.5]} 8... e4 {[%clk 0:02:35.4]} 9. Ne1 {[%clk 0:02:34.3]} 9... O-O {[%clk
0:02:32.5]} 10. d3 {[%clk 0:02:34.3]} 10... exd3 {[%clk 0:02:27]} 11. Nxd3
{[%clk 0:02:35.2]} 11... Nb6 {[%clk 0:02:20.5]} 12. Bb5 {[%clk 0:02:33.4]} 12...
Bf5 {[%clk 0:02:19]} 13. Nf4 {[%clk 0:02:23.3]} 13... Qxd1 {[%clk 0:02:01.2]}
14. Rxd1 {[%clk 0:02:23]} 14... Rad8 {[%clk 0:01:43.8]} 15. Bd2 {[%clk
0:02:00.1]} 15... Ne5 {[%clk 0:01:32]} 16. Na3 {[%clk 0:01:57]} 16... a6 {[%clk
0:01:12.5]} 17. Be2 {[%clk 0:01:54.7]} 17... Bg5 {[%clk 0:01:00.9]} 18. Be3
{[%clk 0:01:41.8]} 18... Na4 {[%clk 0:00:42.4]} 19. Nd5 {[%clk 0:01:14.9]} 19...
Bxe3 {[%clk 0:00:26.2]} 20. Ne7+ {[%clk 0:00:51.1]} 20... Kh8 {[%clk 0:00:23.6]}
21. Nxf5 {[%clk 0:00:51.3]} 21... Bg5 {[%clk 0:00:19.3]} 22. Rab1 {[%clk
0:00:35.8]} 22... b5 {[%clk 0:00:15.9]} 23. g3 {[%clk 0:00:30]} 23... g6 {[%clk
0:00:14.8]} 24. Nd6 {[%clk 0:00:22.4]} 24... Nb6 {[%clk 0:00:13.5]} 25. f4
{[%clk 0:00:20.7]} 25... Nec4 {[%clk 0:00:06.2]} 26. Ndxc4 {[%clk 0:00:19.3]}
26... Nxc4 {[%clk 0:00:02.8]} 27. Nxc4 {[%clk 0:00:18.9]} 27... Rde8 {[%clk
0:00:01.7]} 28. Ne5 {[%clk 0:00:16.5]} 1-0

[Event "Early-Titled-Tuesday-Blitz-October-24-2023"]
[Site "Chess.com"]
[Date "2023.10.24"]
[Round "9"]
[White "Laico"]
[Black "Politov_Pavel"]
[Result "0-1"]
[WhiteElo "2342"]
[BlackElo "2067"]
[TimeControl "180+1"]
[EndTime "9:42:17 PDT"]
[Termination "Politov_Pavel won on time"]

1. e3 {[%clk 0:02:56.2]} 1... d5 {[%clk 0:02:57.6]} 2. b3 {[%clk 0:02:56.7]}
2... e5 {[%clk 0:02:56.1]} 3. Bb2 {[%clk 0:02:57.6]} 3... Nc6 {[%clk 0:02:56]}
4. Bb5 {[%clk 0:02:55.6]} 4... Bd6 {[%clk 0:02:53.3]} 5. f4 {[%clk 0:02:55.1]}
5... f6 {[%clk 0:02:42.1]} 6. fxe5 {[%clk 0:02:53.4]} 6... fxe5 {[%clk
0:02:41.5]} 7. Bxc6+ {[%clk 0:02:53.6]} 7... bxc6 {[%clk 0:02:40.8]} 8. Bxe5
{[%clk 0:02:54.5]} 8... Qg5 {[%clk 0:01:39.1]} 9. Nf3 {[%clk 0:02:35.1]} 9...
Qg4 {[%clk 0:01:19.8]} 10. O-O {[%clk 0:02:19.4]} 10... Ne7 {[%clk 0:01:11.6]}
11. Bxd6 {[%clk 0:01:49]} 11... cxd6 {[%clk 0:01:09.5]} 12. Nd4 {[%clk 0:01:49]}
12... Bd7 {[%clk 0:01:05.1]} 13. Qxg4 {[%clk 0:01:30.6]} 13... Bxg4 {[%clk
0:01:06]} 14. Nc3 {[%clk 0:01:30.4]} 14... a6 {[%clk 0:01:01.8]} 15. Rf4 {[%clk
0:01:19.5]} 15... Bd7 {[%clk 0:00:59.4]} 16. Raf1 {[%clk 0:00:55.4]} 16... c5
{[%clk 0:00:44.8]} 17. Nf3 {[%clk 0:00:37.1]} 17... Ng6 {[%clk 0:00:38.3]} 18.
Ra4 {[%clk 0:00:16.9]} 18... Bxa4 {[%clk 0:00:37.4]} 19. Nxa4 {[%clk 0:00:17.8]}
19... Rb8 {[%clk 0:00:35.5]} 20. Nc3 {[%clk 0:00:15.4]} 20... Ne7 {[%clk
0:00:35.6]} 21. Ng5 {[%clk 0:00:14.8]} 21... Kd7 {[%clk 0:00:35.7]} 22. Rf7
{[%clk 0:00:11.2]} 22... h6 {[%clk 0:00:31.7]} 23. Nh3 {[%clk 0:00:08.2]} 23...
Ke6 {[%clk 0:00:27]} 24. Rxg7 {[%clk 0:00:07.6]} 24... d4 {[%clk 0:00:24.5]} 25.
exd4 {[%clk 0:00:06.9]} 25... cxd4 {[%clk 0:00:25.4]} 26. Ne2 {[%clk 0:00:05.8]}
26... Nf5 {[%clk 0:00:24.8]} 27. Nhf4+ {[%clk 0:00:03.5]} 27... Kf6 {[%clk
0:00:24.9]} 28. Ra7 {[%clk 0:00:03.1]} 28... Rhe8 {[%clk 0:00:22.5]} 29. Rxa6
{[%clk 0:00:01.8]} 29... Ra8 {[%clk 0:00:17.8]} 0-1

[Event "Early-Titled-Tuesday-Blitz-October-24-2023"]
[Site "Chess.com"]
[Date "2023.10.24"]
[Round "9"]
[White "vishwa_vijeta"]
[Black "CSB7"]
[Result "0-1"]
[WhiteElo "2524"]
[BlackElo "2713"]
[TimeControl "180+1"]
[EndTime "9:42:18 PDT"]
[Termination "CSB7 won by checkmate"]

1. e4 {[%clk 0:03:00.9]} 1... e5 {[%clk 0:02:59.2]} 2. Nf3 {[%clk 0:03:01.2]}
2... Nf6 {[%clk 0:02:59.5]} 3. d4 {[%clk 0:02:59.6]} 3... Nxe4 {[%clk
0:02:56.5]} 4. Bd3 {[%clk 0:02:59.2]} 4... Nc6 {[%clk 0:02:56.4]} 5. O-O {[%clk
0:02:30.9]} 5... d5 {[%clk 0:02:49.6]} 6. c4 {[%clk 0:02:27.3]} 6... f5 {[%clk
0:01:35.1]} 7. cxd5 {[%clk 0:02:23.1]} 7... Qxd5 {[%clk 0:01:36]} 8. Bxe4 {[%clk
0:02:22.4]} 8... fxe4 {[%clk 0:01:32.2]} 9. Nc3 {[%clk 0:02:22]} 9... Qd7 {[%clk
0:01:14.9]} 10. Nxe4 {[%clk 0:01:57.4]} 10... exd4 {[%clk 0:01:14.9]} 11. Re1
{[%clk 0:01:55.5]} 11... Be7 {[%clk 0:01:15]} 12. Nfg5 {[%clk 0:01:40.9]} 12...
Qf5 {[%clk 0:01:05.8]} 13. Qb3 {[%clk 0:01:36.3]} 13... h6 {[%clk 0:00:56.5]}
14. Ng3 {[%clk 0:01:33.7]} 14... Qg6 {[%clk 0:00:55.4]} 15. Ne6 {[%clk
0:01:29.3]} 15... Bxe6 {[%clk 0:00:40.1]} 16. Qxb7 {[%clk 0:01:15.8]} 16... Kd7
{[%clk 0:00:32.9]} 17. Bf4 {[%clk 0:01:11.9]} 17... Rhc8 {[%clk 0:00:31.9]} 18.
Rac1 {[%clk 0:01:02.5]} 18... Bd5 {[%clk 0:00:29.7]} 19. Bxc7 {[%clk 0:00:40.4]}
19... Rxc7 {[%clk 0:00:30.6]} 20. Qxa8 {[%clk 0:00:40.8]} 20... h5 {[%clk
0:00:30.4]} 21. f3 {[%clk 0:00:37.8]} 21... d3 {[%clk 0:00:25.5]} 22. Ne4 {[%clk
0:00:34.1]} 22... Bb4 {[%clk 0:00:18.7]} 23. Nc5+ {[%clk 0:00:28.7]} 23... Bxc5+
{[%clk 0:00:17.6]} 24. Rxc5 {[%clk 0:00:29.2]} 24... Bxf3 {[%clk 0:00:15.3]} 25.
g3 {[%clk 0:00:16.5]} 25... d2 {[%clk 0:00:15.6]} 26. Rf1 {[%clk 0:00:16.6]}
26... Qd3 {[%clk 0:00:13.4]} 27. Rc3 {[%clk 0:00:07.8]} 27... Qd4+ {[%clk
0:00:11.1]} 28. Rf2 {[%clk 0:00:06.7]} 28... d1=Q# {[%clk 0:00:10.8]} 0-1

[Event "Early-Titled-Tuesday-Blitz-October-24-2023"]
[Site "Chess.com"]
[Date "2023.10.24"]
[Round "9"]
[White "CraiggoryC"]
[Black "C_K_G"]
[Result "0-1"]
[WhiteElo "2210"]
[BlackElo "1900"]
[TimeControl "180+1"]
[EndTime "9:42:25 PDT"]
[Termination "C_K_G won on time"]

1. e4 {[%clk 0:03:00.9]} 1... c5 {[%clk 0:03:00.3]} 2. Nf3 {[%clk 0:03:00.8]}
2... d6 {[%clk 0:03:01]} 3. d4 {[%clk 0:03:00.2]} 3... cxd4 {[%clk 0:03:01.9]}
4. Nxd4 {[%clk 0:03:00.6]} 4... Nf6 {[%clk 0:03:02.8]} 5. Nc3 {[%clk 0:03:01]}
5... a6 {[%clk 0:03:03.7]} 6. Be3 {[%clk 0:03:01.2]} 6... e5 {[%clk 0:03:04.2]}
7. Nb3 {[%clk 0:03:01.8]} 7... Be6 {[%clk 0:03:04.6]} 8. f3 {[%clk 0:03:01.5]}
8... Be7 {[%clk 0:03:04.9]} 9. Qd2 {[%clk 0:03:01.5]} 9... O-O {[%clk
0:03:05.5]} 10. O-O-O {[%clk 0:02:59.3]} 10... b5 {[%clk 0:03:05.7]} 11. g4
{[%clk 0:02:58.8]} 11... Qc7 {[%clk 0:03:05.2]} 12. Kb1 {[%clk 0:02:41.5]} 12...
Nbd7 {[%clk 0:02:49.3]} 13. Nd5 {[%clk 0:02:21.2]} 13... Bxd5 {[%clk 0:02:44.6]}
14. exd5 {[%clk 0:02:21.5]} 14... Nb6 {[%clk 0:02:43.4]} 15. Bxb6 {[%clk
0:02:02.1]} 15... Qxb6 {[%clk 0:02:43.1]} 16. g5 {[%clk 0:01:57.6]} 16... Nh5
{[%clk 0:02:36]} 17. Na5 {[%clk 0:01:55.8]} 17... Nf4 {[%clk 0:02:32.3]} 18. h4
{[%clk 0:01:44.6]} 18... Nxd5 {[%clk 0:02:26.5]} 19. Qxd5 {[%clk 0:01:45.5]}
19... Qxa5 {[%clk 0:02:26.6]} 20. Bd3 {[%clk 0:01:42.4]} 20... Rac8 {[%clk
0:02:18.2]} 21. Qe4 {[%clk 0:01:14.5]} 21... g6 {[%clk 0:02:04.5]} 22. h5 {[%clk
0:00:57.8]} 22... Qa4 {[%clk 0:01:48.9]} 23. hxg6 {[%clk 0:00:22.5]} 23... hxg6
{[%clk 0:01:17.7]} 24. Qxa4 {[%clk 0:00:14.4]} 24... bxa4 {[%clk 0:01:16.9]} 25.
Bxa6 {[%clk 0:00:14.9]} 25... Rb8 {[%clk 0:01:11.1]} 26. Rhf1 {[%clk 0:00:10]}
26... a3 {[%clk 0:01:09.2]} 27. b3 {[%clk 0:00:09.9]} 27... Bxg5 {[%clk
0:01:08.7]} 28. Rxd6 {[%clk 0:00:09.2]} 28... Bf4 {[%clk 0:01:05.3]} 29. Bc4
{[%clk 0:00:09]} 29... Kg7 {[%clk 0:01:05]} 30. Rd7 {[%clk 0:00:07.9]} 30...
Rbd8 {[%clk 0:01:01.9]} 31. Rfd1 {[%clk 0:00:06.7]} 31... Rxd7 {[%clk 0:01:02]}
32. Rxd7 {[%clk 0:00:07.6]} 32... Be3 {[%clk 0:00:54.4]} 33. c3 {[%clk
0:00:07.9]} 33... g5 {[%clk 0:00:49.8]} 34. Kc2 {[%clk 0:00:08]} 34... Kg6
{[%clk 0:00:49.4]} 35. Kd3 {[%clk 0:00:07.7]} 35... Bf4 {[%clk 0:00:47.8]} 36.
Rd6+ {[%clk 0:00:04.8]} 36... Kh5 {[%clk 0:00:43.3]} 37. Ra6 {[%clk 0:00:03.6]}
37... f5 {[%clk 0:00:35.8]} 38. Rxa3 {[%clk 0:00:02.7]} 38... g4 {[%clk
0:00:35.9]} 39. fxg4+ {[%clk 0:00:02.3]} 39... fxg4 {[%clk 0:00:36.1]} 40. Ra7
{[%clk 0:00:01.5]} 40... g3 {[%clk 0:00:35.7]} 0-1

[Event "Early-Titled-Tuesday-Blitz-October-24-2023"]
[Site "Chess.com"]
[Date "2023.10.24"]
[Round "9"]
[White "NovikovaGalina"]
[Black "M1711"]
[Result "0-1"]
[WhiteElo "2436"]
[BlackElo "2576"]
[TimeControl "180+1"]
[EndTime "9:42:27 PDT"]
[Termination "M1711 won on time"]

1. e4 {[%clk 0:03:00.9]} 1... a6 {[%clk 0:02:50.9]} 2. Bc4 {[%clk 0:02:53.9]}
2... b5 {[%clk 0:02:36.6]} 3. Bxf7+ {[%clk 0:02:42.7]} 3... Kxf7 {[%clk
0:02:37.5]} 4. Qh5+ {[%clk 0:02:42.8]} 4... g6 {[%clk 0:02:38.2]} 5. Qd5+ {[%clk
0:02:43.2]} 5... e6 {[%clk 0:02:38.7]} 6. Qxa8 {[%clk 0:02:43.4]} 6... Nc6
{[%clk 0:02:37.7]} 7. Nf3 {[%clk 0:02:28.6]} 7... Bc5 {[%clk 0:02:28.6]} 8. c3
{[%clk 0:02:19.4]} 8... Bb6 {[%clk 0:02:18.9]} 9. d4 {[%clk 0:02:17.1]} 9... Kg7
{[%clk 0:02:10.3]} 10. O-O {[%clk 0:02:00.7]} 10... Nge7 {[%clk 0:02:03.7]} 11.
Bg5 {[%clk 0:01:56.6]} 11... Qf8 {[%clk 0:02:02.8]} 12. e5 {[%clk 0:01:30.1]}
12... Rg8 {[%clk 0:01:42.6]} 13. Bf6+ {[%clk 0:01:16.9]} 13... Kh6 {[%clk
0:01:42.5]} 14. Nbd2 {[%clk 0:01:17.2]} 14... Nd5 {[%clk 0:01:34.3]} 15. Ne4
{[%clk 0:01:16.7]} 15... Nxf6 {[%clk 0:01:17.9]} 16. Nxf6 {[%clk 0:01:15.4]}
16... Rh8 {[%clk 0:01:16.2]} 17. a4 {[%clk 0:00:44.9]} 17... b4 {[%clk
0:01:11.5]} 18. a5 {[%clk 0:00:32.1]} 18... Bxa5 {[%clk 0:01:07]} 19. Rxa5
{[%clk 0:00:29.4]} 19... Nxa5 {[%clk 0:01:06]} 20. Qe4 {[%clk 0:00:30.3]} 20...
Kg7 {[%clk 0:01:03.9]} 21. h4 {[%clk 0:00:23]} 21... Nc6 {[%clk 0:00:33.2]} 22.
h5 {[%clk 0:00:21.7]} 22... Ne7 {[%clk 0:00:32]} 23. Qf4 {[%clk 0:00:20.2]}
23... Ng8 {[%clk 0:00:29.4]} 24. h6+ {[%clk 0:00:13.3]} 24... Nxh6 {[%clk
0:00:28.8]} 25. Qg5 {[%clk 0:00:07.7]} 25... Ng8 {[%clk 0:00:29.2]} 26. Ne4
{[%clk 0:00:06]} 26... Qe7 {[%clk 0:00:27.9]} 27. Qg3 {[%clk 0:00:06.7]} 27...
Bb7 {[%clk 0:00:26.2]} 28. Neg5 {[%clk 0:00:04.6]} 28... Nh6 {[%clk 0:00:24.7]}
29. Qf4 {[%clk 0:00:03.3]} 29... Rf8 {[%clk 0:00:24]} 30. Qe3 {[%clk 0:00:02.6]}
30... Nf5 {[%clk 0:00:19.6]} 31. Qd2 {[%clk 0:00:03.3]} 31... h6 {[%clk
0:00:13.6]} 32. Nh3 {[%clk 0:00:03.3]} 32... Bxf3 {[%clk 0:00:12.6]} 33. gxf3
{[%clk 0:00:04.2]} 33... Nh4 {[%clk 0:00:13.5]} 34. Kh1 {[%clk 0:00:01.1]} 34...
Nxf3 {[%clk 0:00:13.5]} 0-1

[Event "Early-Titled-Tuesday-Blitz-October-24-2023"]
[Site "Chess.com"]
[Date "2023.10.24"]
[Round "9"]
[White "Adnan_Habib"]
[Black "ural58"]
[Result "1-0"]
[WhiteElo "2346"]
[BlackElo "2505"]
[TimeControl "180+1"]
[EndTime "9:42:28 PDT"]
[Termination "Adnan_Habib won by resignation"]

1. d4 {[%clk 0:03:00.9]} 1... d5 {[%clk 0:02:59.3]} 2. c4 {[%clk 0:02:58.9]}
2... e5 {[%clk 0:02:58.8]} 3. dxe5 {[%clk 0:02:50.9]} 3... d4 {[%clk 0:02:58.5]}
4. Nf3 {[%clk 0:02:46.1]} 4... Nc6 {[%clk 0:02:58.1]} 5. Bf4 {[%clk 0:02:45.8]}
5... h6 {[%clk 0:02:53.4]} 6. h4 {[%clk 0:02:42.8]} 6... Nge7 {[%clk 0:02:51.2]}
7. a3 {[%clk 0:02:42.2]} 7... Ng6 {[%clk 0:02:47.9]} 8. Bg3 {[%clk 0:02:41.5]}
8... f6 {[%clk 0:02:45.8]} 9. exf6 {[%clk 0:02:35.4]} 9... Qxf6 {[%clk
0:02:45.7]} 10. b4 {[%clk 0:02:31.2]} 10... Bg4 {[%clk 0:02:18]} 11. b5 {[%clk
0:02:13.1]} 11... Bxf3 {[%clk 0:01:53.9]} 12. exf3 {[%clk 0:02:11.7]} 12... Na5
{[%clk 0:01:52.3]} 13. Bd3 {[%clk 0:02:04.4]} 13... O-O-O {[%clk 0:01:49.9]} 14.
Nd2 {[%clk 0:01:55.6]} 14... Nf4 {[%clk 0:01:48]} 15. Ne4 {[%clk 0:01:50.4]}
15... Nxd3+ {[%clk 0:01:47]} 16. Qxd3 {[%clk 0:01:49.9]} 16... Qf7 {[%clk
0:01:45.5]} 17. Rc1 {[%clk 0:01:46.4]} 17... Be7 {[%clk 0:01:30]} 18. O-O {[%clk
0:01:41.6]} 18... g5 {[%clk 0:01:29.7]} 19. hxg5 {[%clk 0:01:38.7]} 19... hxg5
{[%clk 0:01:29.5]} 20. c5 {[%clk 0:01:34.6]} 20... Qh7 {[%clk 0:01:27.5]} 21.
Nd6+ {[%clk 0:01:29.6]} 21... Kb8 {[%clk 0:01:13.9]} 22. Qxh7 {[%clk 0:01:19.6]}
22... Rxh7 {[%clk 0:01:14.8]} 23. Rfe1 {[%clk 0:01:14.8]} 23... cxd6 {[%clk
0:01:12.1]} 24. cxd6 {[%clk 0:01:09.4]} 24... Bxd6 {[%clk 0:00:49.5]} 25. Bxd6+
{[%clk 0:01:07.8]} 25... Ka8 {[%clk 0:00:49.8]} 26. Bc7 {[%clk 0:01:00.8]} 26...
Rxc7 {[%clk 0:00:49]} 27. Rxc7 {[%clk 0:01:00.1]} 27... d3 {[%clk 0:00:44.9]}
28. Rd1 {[%clk 0:01:00.3]} 28... d2 {[%clk 0:00:44.8]} 29. Rxd2 {[%clk
0:01:00.1]} 29... Rg8 {[%clk 0:00:38.4]} 30. Rg7 {[%clk 0:00:55.8]} 30... Rc8
{[%clk 0:00:37.5]} 31. Rxg5 {[%clk 0:00:53.5]} 31... Nb3 {[%clk 0:00:37.4]} 32.
Rc2 {[%clk 0:00:49.6]} 32... Rd8 {[%clk 0:00:35.3]} 33. Kh2 {[%clk 0:00:49.1]}
33... b6 {[%clk 0:00:34]} 34. Rc7 {[%clk 0:00:47.4]} 34... Nd4 {[%clk
0:00:30.1]} 35. a4 {[%clk 0:00:47.2]} 35... Ne2 {[%clk 0:00:28.2]} 36. Rh5
{[%clk 0:00:43.3]} 36... Nf4 {[%clk 0:00:19.8]} 37. Rhh7 {[%clk 0:00:42.9]}
37... Ne6 {[%clk 0:00:17.7]} 38. Rxa7+ {[%clk 0:00:42.6]} 38... Kb8 {[%clk
0:00:18.1]} 39. Rhb7+ {[%clk 0:00:43.2]} 39... Kc8 {[%clk 0:00:18.4]} 40. Re7
{[%clk 0:00:41.3]} 40... Kb8 {[%clk 0:00:13.9]} 41. Rab7+ {[%clk 0:00:38.8]}
41... Ka8 {[%clk 0:00:13.6]} 42. Rxb6 {[%clk 0:00:37.3]} 42... Rh8+ {[%clk
0:00:11]} 43. Kg3 {[%clk 0:00:37]} 43... Rg8+ {[%clk 0:00:11.3]} 44. Kh4 {[%clk
0:00:37.2]} 44... Nf4 {[%clk 0:00:09.6]} 45. g4 {[%clk 0:00:34.2]} 45... Ng6+
{[%clk 0:00:08.8]} 46. Rxg6 {[%clk 0:00:33.3]} 46... Rxg6 {[%clk 0:00:08.3]} 47.
f4 {[%clk 0:00:33.6]} 1-0